[Event "Titled Tuesday Blitz May 16 Late 2023"]
[White "Mickiewicz, Piotr"]
[Black "Erzhanov, Arman"]
[WhiteFideId "1114891"]
[BlackFideId "4138821"]
[WhiteElo "2246"]
[BlackElo "2138"]
[Result "1-0"]
[Round "08"]
[TimeControl "180+2"]
[Date "2023.05.16"]
[WhiteClock "0:00:13"]
[BlackClock "0:00:18"]

1. c4 {[%clk 0:03:00]}  d6 {[%clk 0:02:53]} 2. d4 {[%clk 0:02:55]}  e5 {[%clk 0:02:53]} 3. Nf3 {[%clk 0:02:55]}  e4 {[%clk 0:02:52]} 4. Nfd2 {[%clk 0:02:53]}  f5 {[%clk 0:02:53]} 5. Nc3 {[%clk 0:02:52]}  Nf6 {[%clk 0:02:54]} 6. e3 {[%clk 0:02:51]}  g6 {[%clk 0:02:54]} 7. f4 {[%clk 0:02:43]}  Bg7 {[%clk 0:02:32]} 8. Be2 {[%clk 0:02:39]}  O-O {[%clk 0:02:32]} 9. O-O {[%clk 0:02:37]}  c5 {[%clk 0:02:33]} 10. Nb3 {[%clk 0:02:27]}  b6 {[%clk 0:02:30]} 11. Qc2 {[%clk 0:02:14]}  Nc6 {[%clk 0:02:29]} 12. Rd1 {[%clk 0:02:13]}  Qe7 {[%clk 0:02:24]} 13. a3 {[%clk 0:02:10]}  Ba6 {[%clk 0:02:22]} 14. Nb5 {[%clk 0:01:56]}  Rfd8 {[%clk 0:02:15]} 15. d5 {[%clk 0:01:53]}  Nb8 {[%clk 0:02:13]} 16. Bd2 {[%clk 0:01:52]}  Bxb5 {[%clk 0:02:10]} 17. cxb5 {[%clk 0:01:51]}  h6 {[%clk 0:02:08]} 18. Bc3 {[%clk 0:01:48]}  g5 {[%clk 0:02:05]} 19. fxg5 {[%clk 0:01:43]}  hxg5 {[%clk 0:02:05]} 20. Rf1 {[%clk 0:01:43]}  Qd7 {[%clk 0:02:06]} 21. Nd2 {[%clk 0:01:29]}  Rf8 {[%clk 0:02:05]} 22. a4 {[%clk 0:01:23]}  a5 {[%clk 0:02:01]} 23. bxa6 {[%clk 0:01:19]}  Nxa6 {[%clk 0:02:01]} 24. Bb5 {[%clk 0:01:18]}  Qc8 {[%clk 0:02:01]} 25. Bc6 {[%clk 0:01:17]}  Ra7 {[%clk 0:02:02]} 26. Nc4 {[%clk 0:01:16]}  Qd8 {[%clk 0:01:45]} 27. Rxf5 {[%clk 0:01:12]}  Nb4 {[%clk 0:01:39]} 28. Bxb4 {[%clk 0:01:07]}  cxb4 {[%clk 0:01:40]} 29. Raf1 {[%clk 0:01:06]}  Re7 {[%clk 0:01:34]} 30. b3 {[%clk 0:01:05]}  Nh7 {[%clk 0:01:29]} 31. Qd2 {[%clk 0:00:58]}  Bc3 {[%clk 0:01:26]} 32. Qe2 {[%clk 0:00:57]}  Ref7 {[%clk 0:01:24]} 33. Rxf7 {[%clk 0:00:55]}  Rxf7 {[%clk 0:01:25]} 34. Rxf7 {[%clk 0:00:55]}  Kxf7 {[%clk 0:01:25]} 35. Qh5+ {[%clk 0:00:54]}  Kg7 {[%clk 0:01:24]} 36. Qe8 {[%clk 0:00:48]}  Qf6 {[%clk 0:01:03]} 37. Qxe4 {[%clk 0:00:45]}  Be1 {[%clk 0:00:59]} 38. Qf3 {[%clk 0:00:41]}  Qa1 {[%clk 0:00:58]} 39. Qf1 {[%clk 0:00:41]}  Nf6 {[%clk 0:00:54]} 40. Nxd6 {[%clk 0:00:36]}  Ng4 {[%clk 0:00:53]} 41. Nf5+ {[%clk 0:00:22]}  Kh7 {[%clk 0:00:50]} 42. Kh1 {[%clk 0:00:16]}  Nf2+ {[%clk 0:00:45]} 43. Kg1 {[%clk 0:00:17]}  Ne4 {[%clk 0:00:40]} 44. g3 {[%clk 0:00:16]}  Qb2 {[%clk 0:00:27]} 45. Qh3+ {[%clk 0:00:15]}  Kg6 {[%clk 0:00:23]} 46. Be8+ {[%clk 0:00:16]}  Kf6 {[%clk 0:00:21]} 47. Qh8+ {[%clk 0:00:16]}  Kxf5 {[%clk 0:00:21]} 48. Qxb2 {[%clk 0:00:17]}  Bc3 {[%clk 0:00:21]} 49. Qe2 {[%clk 0:00:16]}  Nd6 {[%clk 0:00:22]} 50. Bd7+ {[%clk 0:00:15]}  Ke5 {[%clk 0:00:22]} 51. Be6 {[%clk 0:00:15]}  Ne4 {[%clk 0:00:21]} 52. h4 {[%clk 0:00:15]}  Nxg3 {[%clk 0:00:21]} 53. Qh2 {[%clk 0:00:15]}  gxh4 {[%clk 0:00:20]} 54. Qxh4 {[%clk 0:00:13]}  Ne4 {[%clk 0:00:18]} 55. Qf4# {[%clk 0:00:13]} 1-0


[Site "https://www.chess.com"]

[Event "Titled Tuesday Blitz May 16 Late 2023"]
[White "cristianserban1"]
[Black "Buchenau, Frank"]
[BlackFideId "4604350"]
[WhiteElo "2516"]
[BlackElo "2157"]
[Result "1-0"]
[Round "08"]
[TimeControl "180+2"]
[Date "2023.05.16"]
[WhiteClock "0:00:01"]
[BlackClock "0:00:00"]

1. d4 {[%clk 0:03:00]}  e6 {[%clk 0:02:59]} 2. Bf4 {[%clk 0:03:00]}  Nf6 {[%clk 0:02:58]} 3. e3 {[%clk 0:02:59]}  d5 {[%clk 0:02:58]} 4. Nf3 {[%clk 0:02:59]}  c5 {[%clk 0:02:58]} 5. Nbd2 {[%clk 0:03:00]}  Nc6 {[%clk 0:02:58]} 6. c3 {[%clk 0:03:00]}  Bd6 {[%clk 0:02:58]} 7. Bg3 {[%clk 0:03:00]}  O-O {[%clk 0:02:58]} 8. Bd3 {[%clk 0:03:01]}  b6 {[%clk 0:02:58]} 9. e4 {[%clk 0:03:01]}  Be7 {[%clk 0:02:56]} 10. e5 {[%clk 0:02:58]}  Nh5 {[%clk 0:02:55]} 11. a3 {[%clk 0:02:50]}  a5 {[%clk 0:02:51]} 12. Qe2 {[%clk 0:02:48]}  Bb7 {[%clk 0:02:27]} 13. Ng1 {[%clk 0:02:26]}  g6 {[%clk 0:02:18]} 14. Ngf3 {[%clk 0:02:14]}  a4 {[%clk 0:02:13]} 15. Qe3 {[%clk 0:02:04]}  Ba6 {[%clk 0:02:05]} 16. Bc2 {[%clk 0:01:58]}  Bb5 {[%clk 0:01:52]} 17. Bf4 {[%clk 0:01:57]}  Nxf4 {[%clk 0:01:50]} 18. Qxf4 {[%clk 0:01:58]}  f6 {[%clk 0:01:43]} 19. exf6 {[%clk 0:01:51]}  Bxf6 {[%clk 0:01:41]} 20. Qg4 {[%clk 0:01:52]}  e5 {[%clk 0:01:10]} 21. dxe5 {[%clk 0:01:15]}  Nxe5 {[%clk 0:01:03]} 22. Nxe5 {[%clk 0:01:15]}  Bxe5 {[%clk 0:01:00]} 23. Qe6+ {[%clk 0:01:12]}  Rf7 {[%clk 0:00:59]} 24. Nf3 {[%clk 0:01:07]}  Qe8 {[%clk 0:00:33]} 25. Qxe8+ {[%clk 0:01:06]}  Rxe8 {[%clk 0:00:33]} 26. O-O-O {[%clk 0:01:07]}  Bf4+ {[%clk 0:00:19]} 27. Kb1 {[%clk 0:01:06]}  Bc6 {[%clk 0:00:19]} 28. Rhe1 {[%clk 0:01:00]}  Rfe7 {[%clk 0:00:19]} 29. g3 {[%clk 0:00:58]}  Bh6 {[%clk 0:00:18]} 30. Rxe7 {[%clk 0:00:50]}  Rxe7 {[%clk 0:00:18]} 31. Re1 {[%clk 0:00:51]}  Rxe1+ {[%clk 0:00:16]} 32. Nxe1 {[%clk 0:00:51]}  Kf7 {[%clk 0:00:11]} 33. f4 {[%clk 0:00:49]}  Bg7 {[%clk 0:00:10]} 34. Nf3 {[%clk 0:00:48]}  d4 {[%clk 0:00:08]} 35. Ng5+ {[%clk 0:00:48]}  Kg8 {[%clk 0:00:07]} 36. Ne6 {[%clk 0:00:45]}  Bf6 {[%clk 0:00:06]} 37. cxd4 {[%clk 0:00:45]}  cxd4 {[%clk 0:00:06]} 38. Bd3 {[%clk 0:00:30]}  Kf7 {[%clk 0:00:06]} 39. Bc4 {[%clk 0:00:30]}  Ke7 {[%clk 0:00:06]} 40. Nc7 {[%clk 0:00:20]}  Be4+ {[%clk 0:00:05]} 41. Kc1 {[%clk 0:00:20]}  Kd7 {[%clk 0:00:05]} 42. Na6 {[%clk 0:00:17]}  Kc6 {[%clk 0:00:05]} 43. Nb4+ {[%clk 0:00:17]}  Kc5 {[%clk 0:00:05]} 44. Bg8 {[%clk 0:00:12]}  h5 {[%clk 0:00:04]} 45. Kd2 {[%clk 0:00:09]}  d3 {[%clk 0:00:05]} 46. b3 {[%clk 0:00:09]}  Kd4 {[%clk 0:00:04]} 47. bxa4 {[%clk 0:00:08]}  g5 {[%clk 0:00:04]} 48. Bf7 {[%clk 0:00:05]}  gxf4 {[%clk 0:00:04]} 49. gxf4 {[%clk 0:00:06]}  Bh4 {[%clk 0:00:04]} 50. Bxh5 {[%clk 0:00:06]}  Bf2 {[%clk 0:00:04]} 51. Na2 {[%clk 0:00:02]}  Be3+ {[%clk 0:00:05]} 52. Kd1 {[%clk 0:00:02]}  Bxf4 {[%clk 0:00:03]} 53. Nc1 {[%clk 0:00:02]}  Bxh2 {[%clk 0:00:03]} 54. a5 {[%clk 0:00:01]}  bxa5 {[%clk 0:00:01]} 55. Nb3+ {[%clk 0:00:01]}  Kc3 {[%clk 0:00:00]} 56. Nxa5 {[%clk 0:00:01]} 1-0


[Site "https://www.chess.com"]

[Event "Titled Tuesday Blitz May 16 Late 2023"]
[White "Mirzoev, Azer"]
[Black "Figorito, Nick"]
[WhiteFideId "13400304"]
[BlackFideId "30923689"]
[WhiteElo "2525"]
[BlackElo "2342"]
[Result "1-0"]
[Round "08"]
[TimeControl "180+2"]
[Date "2023.05.16"]
[WhiteClock "0:00:06"]
[BlackClock "0:00:04"]

1. e4 {[%clk 0:03:00]}  e6 {[%clk 0:03:00]} 2. d3 {[%clk 0:02:58]}  d5 {[%clk 0:03:01]} 3. Nd2 {[%clk 0:02:58]}  Nc6 {[%clk 0:03:01]} 4. Ngf3 {[%clk 0:02:57]}  Nf6 {[%clk 0:03:02]} 5. e5 {[%clk 0:02:53]}  Nd7 {[%clk 0:03:02]} 6. d4 {[%clk 0:02:53]}  f6 {[%clk 0:03:01]} 7. Bb5 {[%clk 0:02:46]}  fxe5 {[%clk 0:02:55]} 8. dxe5 {[%clk 0:02:45]}  Be7 {[%clk 0:02:52]} 9. O-O {[%clk 0:02:43]}  O-O {[%clk 0:02:52]} 10. Qe2 {[%clk 0:02:33]}  a6 {[%clk 0:02:28]} 11. Bxc6 {[%clk 0:02:23]}  bxc6 {[%clk 0:02:29]} 12. c4 {[%clk 0:02:20]}  a5 {[%clk 0:02:28]} 13. Nd4 {[%clk 0:02:14]}  Nb8 {[%clk 0:02:17]} 14. Qg4 {[%clk 0:02:04]}  Qd7 {[%clk 0:01:52]} 15. N2f3 {[%clk 0:01:54]}  Ba6 {[%clk 0:01:34]} 16. Nxe6 {[%clk 0:01:47]}  g6 {[%clk 0:01:16]} 17. h3 {[%clk 0:01:29]}  Bxc4 {[%clk 0:01:14]} 18. Nxf8 {[%clk 0:01:27]}  Qxg4 {[%clk 0:01:09]} 19. hxg4 {[%clk 0:01:28]}  Bxf1 {[%clk 0:01:08]} 20. Nxg6 {[%clk 0:01:28]}  hxg6 {[%clk 0:01:06]} 21. Kxf1 {[%clk 0:01:28]}  Nd7 {[%clk 0:01:01]} 22. Bf4 {[%clk 0:01:23]}  Nc5 {[%clk 0:01:00]} 23. Nd4 {[%clk 0:01:19]}  Nd3 {[%clk 0:00:59]} 24. Nxc6 {[%clk 0:01:15]}  Bc5 {[%clk 0:00:49]} 25. Bg3 {[%clk 0:00:56]}  Nxb2 {[%clk 0:00:45]} 26. Rc1 {[%clk 0:00:42]}  Nc4 {[%clk 0:00:46]} 27. e6 {[%clk 0:00:22]}  Re8 {[%clk 0:00:40]} 28. Ne5 {[%clk 0:00:18]}  Rxe6 {[%clk 0:00:32]} 29. Nxc4 {[%clk 0:00:17]}  dxc4 {[%clk 0:00:33]} 30. Rxc4 {[%clk 0:00:17]}  Bb4 {[%clk 0:00:33]} 31. f3 {[%clk 0:00:17]}  c5 {[%clk 0:00:20]} 32. Bf2 {[%clk 0:00:16]}  Rc6 {[%clk 0:00:18]} 33. Ke2 {[%clk 0:00:15]}  Kf7 {[%clk 0:00:18]} 34. Be3 {[%clk 0:00:10]}  Rd6 {[%clk 0:00:13]} 35. g5 {[%clk 0:00:08]}  Rd5 {[%clk 0:00:13]} 36. g3 {[%clk 0:00:06]}  Ke6 {[%clk 0:00:14]} 37. Re4+ {[%clk 0:00:06]}  Kf7 {[%clk 0:00:13]} 38. f4 {[%clk 0:00:06]}  Rd7 {[%clk 0:00:11]} 39. Re5 {[%clk 0:00:05]}  Re7 {[%clk 0:00:07]} 40. Rxe7+ {[%clk 0:00:05]}  Kxe7 {[%clk 0:00:08]} 41. Kd3 {[%clk 0:00:05]}  Kd6 {[%clk 0:00:05]} 42. Kc4 {[%clk 0:00:05]}  Kc6 {[%clk 0:00:04]} 43. g4 {[%clk 0:00:05]}  Ba3 {[%clk 0:00:02]} 44. f5 {[%clk 0:00:05]}  gxf5 {[%clk 0:00:03]} 45. gxf5 {[%clk 0:00:05]}  Bb4 {[%clk 0:00:04]} 46. g6 {[%clk 0:00:05]}  Kd7 {[%clk 0:00:04]} 47. Bg5 {[%clk 0:00:05]}  Ke8 {[%clk 0:00:04]} 48. f6 {[%clk 0:00:05]}  Kf8 {[%clk 0:00:04]} 49. f7 {[%clk 0:00:05]}  Kg7 {[%clk 0:00:05]} 50. Bh6+ {[%clk 0:00:05]}  Kxg6 {[%clk 0:00:05]} 51. f8=Q {[%clk 0:00:06]}  Kh7 {[%clk 0:00:04]} 52. Qg7# {[%clk 0:00:06]} 1-0


[Site "https://www.chess.com"]

[Event "Titled Tuesday Blitz May 16 Late 2023"]
[White "Ismayil, Malak"]
[Black "Harish, Neeraj"]
[WhiteFideId "13412604"]
[BlackFideId "30958130"]
[WhiteElo "1868"]
[BlackElo "1879"]
[Result "1-0"]
[Round "08"]
[TimeControl "180+2"]
[Date "2023.05.16"]
[WhiteClock "0:00:23"]
[BlackClock "0:00:11"]

1. e4 {[%clk 0:02:56]}  e5 {[%clk 0:02:58]} 2. Nf3 {[%clk 0:02:46]}  Nc6 {[%clk 0:02:56]} 3. Bb5 {[%clk 0:02:47]}  a6 {[%clk 0:02:54]} 4. Ba4 {[%clk 0:02:47]}  Nf6 {[%clk 0:02:54]} 5. O-O {[%clk 0:02:45]}  Be7 {[%clk 0:02:54]} 6. Re1 {[%clk 0:02:42]}  b5 {[%clk 0:02:52]} 7. Bb3 {[%clk 0:02:42]}  O-O {[%clk 0:02:53]} 8. d3 {[%clk 0:02:41]}  Bb7 {[%clk 0:02:35]} 9. Nc3 {[%clk 0:02:40]}  d6 {[%clk 0:02:26]} 10. Bg5 {[%clk 0:02:39]}  Na5 {[%clk 0:02:21]} 11. h3 {[%clk 0:02:35]}  Nxb3 {[%clk 0:02:06]} 12. axb3 {[%clk 0:02:34]}  h6 {[%clk 0:02:06]} 13. Bxf6 {[%clk 0:02:32]}  Bxf6 {[%clk 0:02:06]} 14. b4 {[%clk 0:02:28]}  g6 {[%clk 0:02:03]} 15. Qd2 {[%clk 0:02:27]}  Bg7 {[%clk 0:02:03]} 16. d4 {[%clk 0:02:28]}  exd4 {[%clk 0:01:57]} 17. Nxd4 {[%clk 0:02:28]}  Re8 {[%clk 0:01:57]} 18. Nd5 {[%clk 0:02:24]}  c5 {[%clk 0:01:46]} 19. bxc5 {[%clk 0:02:06]}  dxc5 {[%clk 0:01:45]} 20. Nb3 {[%clk 0:02:07]}  Rc8 {[%clk 0:01:32]} 21. c3 {[%clk 0:02:03]}  c4 {[%clk 0:01:12]} 22. Nd4 {[%clk 0:02:01]}  Bxd5 {[%clk 0:00:59]} 23. exd5 {[%clk 0:02:00]}  Qxd5 {[%clk 0:01:00]} 24. Rxe8+ {[%clk 0:01:54]}  Rxe8 {[%clk 0:00:59]} 25. Rxa6 {[%clk 0:01:55]}  Rd8 {[%clk 0:00:54]} 26. Ra5 {[%clk 0:01:52]}  h5 {[%clk 0:00:50]} 27. Qe3 {[%clk 0:01:40]}  Bxd4 {[%clk 0:00:36]} 28. cxd4 {[%clk 0:01:40]}  Ra8 {[%clk 0:00:36]} 29. Rxa8+ {[%clk 0:01:36]}  Qxa8 {[%clk 0:00:37]} 30. Qc3 {[%clk 0:01:30]}  Qd5 {[%clk 0:00:32]} 31. h4 {[%clk 0:01:20]}  Qe4 {[%clk 0:00:20]} 32. g3 {[%clk 0:01:16]}  Qb1+ {[%clk 0:00:20]} 33. Kg2 {[%clk 0:01:15]}  Qe4+ {[%clk 0:00:19]} 34. Kh2 {[%clk 0:01:13]}  Qd3 {[%clk 0:00:19]} 35. Qb4 {[%clk 0:00:36]}  Qxd4 {[%clk 0:00:17]} 36. Qxb5 {[%clk 0:00:30]}  Qxf2+ {[%clk 0:00:16]} 37. Kh3 {[%clk 0:00:31]}  Qf5+ {[%clk 0:00:14]} 38. Qxf5 {[%clk 0:00:29]}  gxf5 {[%clk 0:00:15]} 39. Kg2 {[%clk 0:00:30]}  Kg7 {[%clk 0:00:16]} 40. Kf3 {[%clk 0:00:30]}  Kf6 {[%clk 0:00:17]} 41. Kf4 {[%clk 0:00:31]}  Ke6 {[%clk 0:00:14]} 42. Kg5 {[%clk 0:00:26]}  Ke5 {[%clk 0:00:14]} 43. Kxh5 {[%clk 0:00:26]}  Ke4 {[%clk 0:00:14]} 44. Kg5 {[%clk 0:00:27]}  Kd3 {[%clk 0:00:12]} 45. h5 {[%clk 0:00:26]}  Kc2 {[%clk 0:00:13]} 46. h6 {[%clk 0:00:26]}  Kxb2 {[%clk 0:00:14]} 47. h7 {[%clk 0:00:27]}  c3 {[%clk 0:00:14]} 48. h8=Q {[%clk 0:00:27]}  Kb3 {[%clk 0:00:13]} 49. Qh1 {[%clk 0:00:23]}  c2 {[%clk 0:00:11]} 50. Qc1 {[%clk 0:00:23]} 1-0


[Site "https://www.chess.com"]

[Event "Titled Tuesday Blitz May 16 Late 2023"]
[White "Arnold, Ken"]
[Black "Moore, Nicholas"]
[WhiteFideId "2056836"]
[BlackFideId "4303709"]
[WhiteElo "2384"]
[BlackElo "2564"]
[Result "0-1"]
[Round "08"]
[TimeControl "180+2"]
[Date "2023.05.16"]
[WhiteClock "0:00:02"]
[BlackClock "0:00:08"]

1. d4 {[%clk 0:03:00]}  d5 {[%clk 0:02:56]} 2. c4 {[%clk 0:03:00]}  c6 {[%clk 0:02:46]} 3. cxd5 {[%clk 0:02:57]}  cxd5 {[%clk 0:02:44]} 4. Nc3 {[%clk 0:02:57]}  Nf6 {[%clk 0:02:44]} 5. Nf3 {[%clk 0:02:56]}  Nc6 {[%clk 0:02:43]} 6. Bg5 {[%clk 0:02:54]}  a6 {[%clk 0:02:42]} 7. e3 {[%clk 0:02:54]}  Bf5 {[%clk 0:02:41]} 8. Bd3 {[%clk 0:02:54]}  Bxd3 {[%clk 0:02:40]} 9. Qxd3 {[%clk 0:02:51]}  e6 {[%clk 0:02:39]} 10. O-O {[%clk 0:02:49]}  h6 {[%clk 0:02:36]} 11. Bf4 {[%clk 0:02:47]}  Be7 {[%clk 0:02:35]} 12. a3 {[%clk 0:02:45]}  O-O {[%clk 0:02:35]} 13. b4 {[%clk 0:02:44]}  Nd7 {[%clk 0:02:18]} 14. Na4 {[%clk 0:02:41]}  Nb6 {[%clk 0:02:11]} 15. Nxb6 {[%clk 0:02:39]}  Qxb6 {[%clk 0:02:12]} 16. Rfc1 {[%clk 0:02:34]}  Rfc8 {[%clk 0:02:10]} 17. h3 {[%clk 0:02:33]}  Na7 {[%clk 0:01:35]} 18. Ne5 {[%clk 0:02:24]}  Nb5 {[%clk 0:01:30]} 19. Qe2 {[%clk 0:02:19]}  Qd8 {[%clk 0:01:09]} 20. Qh5 {[%clk 0:02:12]}  Nd6 {[%clk 0:01:04]} 21. Rc5 {[%clk 0:02:05]}  b6 {[%clk 0:00:56]} 22. Rc6 {[%clk 0:01:59]}  Rxc6 {[%clk 0:00:45]} 23. Nxc6 {[%clk 0:01:57]}  Qd7 {[%clk 0:00:45]} 24. Ne5 {[%clk 0:01:44]}  Qe8 {[%clk 0:00:45]} 25. Qg4 {[%clk 0:01:39]}  Kh7 {[%clk 0:00:42]} 26. Rc1 {[%clk 0:01:37]}  Rc8 {[%clk 0:00:38]} 27. Qd1 {[%clk 0:01:35]}  Nc4 {[%clk 0:00:27]} 28. Qd3+ {[%clk 0:01:33]}  g6 {[%clk 0:00:25]} 29. Nxc4 {[%clk 0:01:23]}  Qc6 {[%clk 0:00:23]} 30. e4 {[%clk 0:01:03]}  dxc4 {[%clk 0:00:22]} 31. Qe2 {[%clk 0:00:57]}  b5 {[%clk 0:00:22]} 32. d5 {[%clk 0:00:56]}  exd5 {[%clk 0:00:23]} 33. exd5 {[%clk 0:00:55]}  Qd7 {[%clk 0:00:23]} 34. d6 {[%clk 0:00:53]}  Bf6 {[%clk 0:00:23]} 35. Qe4 {[%clk 0:00:45]}  Re8 {[%clk 0:00:14]} 36. Qd5 {[%clk 0:00:43]}  Qe6 {[%clk 0:00:13]} 37. Qc6 {[%clk 0:00:30]}  Rd8 {[%clk 0:00:11]} 38. Qxa6 {[%clk 0:00:28]}  Qd5 {[%clk 0:00:09]} 39. Qb6 {[%clk 0:00:24]}  Rd7 {[%clk 0:00:09]} 40. Qc5 {[%clk 0:00:24]}  Qe6 {[%clk 0:00:09]} 41. g4 {[%clk 0:00:22]}  Rb7 {[%clk 0:00:07]} 42. Qc6 {[%clk 0:00:21]}  Qd7 {[%clk 0:00:07]} 43. Qxd7 {[%clk 0:00:21]}  Rxd7 {[%clk 0:00:08]} 44. a4 {[%clk 0:00:21]}  Bb2 {[%clk 0:00:06]} 45. Rc2 {[%clk 0:00:20]}  c3 {[%clk 0:00:07]} 46. axb5 {[%clk 0:00:19]}  f6 {[%clk 0:00:06]} 47. b6 {[%clk 0:00:18]}  Kg7 {[%clk 0:00:07]} 48. Kf1 {[%clk 0:00:18]}  Kf7 {[%clk 0:00:07]} 49. Ke2 {[%clk 0:00:18]}  Ke6 {[%clk 0:00:08]} 50. Kd3 {[%clk 0:00:18]}  Kd5 {[%clk 0:00:08]} 51. Be3 {[%clk 0:00:16]}  Kxd6 {[%clk 0:00:08]} 52. Kc4 {[%clk 0:00:14]}  Kc6 {[%clk 0:00:08]} 53. Kb3 {[%clk 0:00:13]}  Kb5 {[%clk 0:00:08]} 54. Bd4 {[%clk 0:00:10]}  Rxd4 {[%clk 0:00:07]} 55. b7 {[%clk 0:00:10]}  Rd8 {[%clk 0:00:08]} 56. f4 {[%clk 0:00:02]}  Kb6 {[%clk 0:00:08]} 0-1


[Site "https://www.chess.com"]

[Event "Titled Tuesday Blitz May 16 Late 2023"]
[White "Bruedigam, Martin"]
[Black "ArchibaldCerveza29"]
[WhiteFideId "24608033"]
[WhiteElo "2331"]
[BlackElo "2377"]
[Result "1-0"]
[Round "08"]
[TimeControl "180+2"]
[Date "2023.05.16"]
[WhiteClock "0:00:38"]
[BlackClock "0:00:07"]

1. d4 {[%clk 0:02:58]}  d5 {[%clk 0:02:59]} 2. c4 {[%clk 0:02:55]}  e6 {[%clk 0:02:59]} 3. Nc3 {[%clk 0:02:49]}  Nf6 {[%clk 0:02:58]} 4. cxd5 {[%clk 0:02:49]}  exd5 {[%clk 0:02:57]} 5. Bg5 {[%clk 0:02:49]}  c6 {[%clk 0:02:58]} 6. e3 {[%clk 0:02:49]}  h6 {[%clk 0:02:57]} 7. Bh4 {[%clk 0:02:48]}  Bd6 {[%clk 0:02:57]} 8. Bd3 {[%clk 0:02:46]}  O-O {[%clk 0:02:57]} 9. Nf3 {[%clk 0:02:44]}  Re8 {[%clk 0:02:56]} 10. O-O {[%clk 0:02:42]}  Bg4 {[%clk 0:02:54]} 11. Qb3 {[%clk 0:02:41]}  Bxf3 {[%clk 0:02:50]} 12. gxf3 {[%clk 0:02:41]}  Qc7 {[%clk 0:02:49]} 13. Bg3 {[%clk 0:02:41]}  Re7 {[%clk 0:02:44]} 14. Rac1 {[%clk 0:02:40]}  Qd8 {[%clk 0:02:43]} 15. Kh1 {[%clk 0:02:23]}  Bxg3 {[%clk 0:02:35]} 16. hxg3 {[%clk 0:02:23]}  Qd6 {[%clk 0:02:35]} 17. Kg2 {[%clk 0:02:22]}  Nbd7 {[%clk 0:02:23]} 18. Rh1 {[%clk 0:02:10]}  Nf8 {[%clk 0:02:21]} 19. Ne2 {[%clk 0:02:02]}  Ne6 {[%clk 0:02:18]} 20. Qc2 {[%clk 0:02:01]}  Rae8 {[%clk 0:02:15]} 21. a3 {[%clk 0:02:00]}  Qd7 {[%clk 0:02:10]} 22. b4 {[%clk 0:01:58]}  a6 {[%clk 0:02:10]} 23. a4 {[%clk 0:01:56]}  Nc7 {[%clk 0:01:50]} 24. Rb1 {[%clk 0:01:35]}  Ra8 {[%clk 0:01:38]} 25. Rhc1 {[%clk 0:01:29]}  Qe8 {[%clk 0:01:29]} 26. Qb3 {[%clk 0:01:18]}  g6 {[%clk 0:01:03]} 27. b5 {[%clk 0:01:15]}  axb5 {[%clk 0:01:04]} 28. axb5 {[%clk 0:01:15]}  cxb5 {[%clk 0:00:25]} 29. Bxb5 {[%clk 0:01:13]}  Nxb5 {[%clk 0:00:26]} 30. Qxb5 {[%clk 0:01:13]}  Qd8 {[%clk 0:00:22]} 31. Rb2 {[%clk 0:01:08]}  Ra3 {[%clk 0:00:19]} 32. Qc5 {[%clk 0:00:56]}  Ra6 {[%clk 0:00:19]} 33. Rcb1 {[%clk 0:00:51]}  Qd7 {[%clk 0:00:12]} 34. Rxb7 {[%clk 0:00:46]}  Qxb7 {[%clk 0:00:12]} 35. Rxb7 {[%clk 0:00:47]}  Rxb7 {[%clk 0:00:12]} 36. Qc8+ {[%clk 0:00:47]}  Kg7 {[%clk 0:00:12]} 37. Qxb7 {[%clk 0:00:47]}  Ra2 {[%clk 0:00:13]} 38. Nf4 {[%clk 0:00:47]}  g5 {[%clk 0:00:12]} 39. Nxd5 {[%clk 0:00:46]}  Kg6 {[%clk 0:00:12]} 40. Qc6 {[%clk 0:00:44]}  Kh7 {[%clk 0:00:11]} 41. Qxf6 {[%clk 0:00:39]}  Ra7 {[%clk 0:00:12]} 42. Ne7 {[%clk 0:00:39]}  g4 {[%clk 0:00:07]} 43. Qxf7+ {[%clk 0:00:38]} 1-0


[Site "https://www.chess.com"]

[Event "Titled Tuesday Blitz May 16 Late 2023"]
[White "Jovic, Stanoje"]
[Black "Weber, Samuel"]
[WhiteFideId "905020"]
[BlackFideId "12924008"]
[WhiteElo "2236"]
[BlackElo "2162"]
[Result "0-1"]
[Round "08"]
[TimeControl "180+2"]
[Date "2023.05.16"]
[WhiteClock "0:00:00"]
[BlackClock "0:01:02"]

1. c4 {[%clk 0:03:00]}  Nf6 {[%clk 0:02:56]} 2. g3 {[%clk 0:03:00]}  e6 {[%clk 0:02:53]} 3. Bg2 {[%clk 0:03:00]}  c5 {[%clk 0:02:54]} 4. Nf3 {[%clk 0:03:00]}  Nc6 {[%clk 0:02:54]} 5. O-O {[%clk 0:03:00]}  b6 {[%clk 0:02:55]} 6. Nc3 {[%clk 0:03:00]}  Bb7 {[%clk 0:02:55]} 7. Re1 {[%clk 0:03:00]}  Be7 {[%clk 0:02:55]} 8. e4 {[%clk 0:03:00]}  d6 {[%clk 0:02:55]} 9. d4 {[%clk 0:03:00]}  cxd4 {[%clk 0:02:55]} 10. Nxd4 {[%clk 0:03:00]}  Nxd4 {[%clk 0:02:56]} 11. Qxd4 {[%clk 0:02:59]}  O-O {[%clk 0:02:18]} 12. b3 {[%clk 0:02:59]}  Rc8 {[%clk 0:02:17]} 13. Bb2 {[%clk 0:02:58]}  a6 {[%clk 0:02:17]} 14. Rad1 {[%clk 0:02:57]}  Qc7 {[%clk 0:02:17]} 15. h3 {[%clk 0:02:46]}  Rfe8 {[%clk 0:02:12]} 16. Kh2 {[%clk 0:02:42]}  h5 {[%clk 0:02:10]} 17. f4 {[%clk 0:02:40]}  h4 {[%clk 0:02:11]} 18. g4 {[%clk 0:02:38]}  d5 {[%clk 0:02:11]} 19. e5 {[%clk 0:02:33]}  Bc5 {[%clk 0:02:09]} 20. Qd2 {[%clk 0:02:09]}  d4 {[%clk 0:01:42]} 21. exf6 {[%clk 0:02:05]}  dxc3 {[%clk 0:01:41]} 22. Qxc3 {[%clk 0:02:01]}  Qxf4+ {[%clk 0:01:41]} 23. Kh1 {[%clk 0:01:51]}  Bxg2+ {[%clk 0:01:40]} 24. Kxg2 {[%clk 0:01:51]}  Rcd8 {[%clk 0:01:27]} 25. Rf1 {[%clk 0:01:40]}  Qe4+ {[%clk 0:01:25]} 26. Qf3 {[%clk 0:01:13]}  Qc2+ {[%clk 0:01:23]} 27. Kh1 {[%clk 0:01:13]}  Qxb2 {[%clk 0:01:23]} 28. fxg7 {[%clk 0:01:07]}  Qxg7 {[%clk 0:01:23]} 29. g5 {[%clk 0:00:56]}  Rxd1 {[%clk 0:01:22]} 30. Rxd1 {[%clk 0:00:52]}  Qxg5 {[%clk 0:01:18]} 31. b4 {[%clk 0:00:44]}  Be3 {[%clk 0:01:07]} 32. Re1 {[%clk 0:00:40]}  Bd4 {[%clk 0:01:06]} 33. Qe4 {[%clk 0:00:30]}  e5 {[%clk 0:01:03]} 34. c5 {[%clk 0:00:26]}  bxc5 {[%clk 0:01:03]} 35. bxc5 {[%clk 0:00:00]}  Qg3 {[%clk 0:01:02]} 0-1


[Site "https://www.chess.com"]